[Event "Titled Tuesday Blitz August 08 Early 2023"]
[White "Samaganova, Aleksandra"]
[Black "Rios Escobar, Adan"]
[WhiteFideId "13800221"]
[BlackFideId "3403645"]
[WhiteElo "2241"]
[BlackElo "2412"]
[Result "0-1"]
[Round "10"]
[TimeControl "180+1"]
[Date "2023.08.08"]
[WhiteClock "0:00:05"]
[BlackClock "0:00:38"]
[Board "149"]

1. c4 {[%clk 0:03:00]}  Nf6 {[%clk 0:02:59]} 2. Nc3 {[%clk 0:02:59]}  g6 {[%clk 0:02:58]} 3. g3 {[%clk 0:02:56]}  Bg7 {[%clk 0:02:57]} 4. Bg2 {[%clk 0:02:56]}  c6 {[%clk 0:02:58]} 5. e4 {[%clk 0:02:55]}  d6 {[%clk 0:02:53]} 6. Nge2 {[%clk 0:02:54]}  O-O {[%clk 0:02:51]} 7. O-O {[%clk 0:02:53]}  a5 {[%clk 0:02:51]} 8. d4 {[%clk 0:02:51]}  Na6 {[%clk 0:02:51]} 9. f4 {[%clk 0:02:50]}  e5 {[%clk 0:02:50]} 10. fxe5 {[%clk 0:02:49]}  dxe5 {[%clk 0:02:50]} 11. d5 {[%clk 0:02:50]}  Nc5 {[%clk 0:02:45]} 12. h3 {[%clk 0:02:47]}  Nh5 {[%clk 0:02:32]} 13. Be3 {[%clk 0:02:42]}  b6 {[%clk 0:02:25]} 14. dxc6 {[%clk 0:02:30]}  Be6 {[%clk 0:02:20]} 15. Nd5 {[%clk 0:02:29]}  Kh8 {[%clk 0:02:02]} 16. c7 {[%clk 0:02:07]}  Qd6 {[%clk 0:01:58]} 17. g4 {[%clk 0:02:02]}  Nf4 {[%clk 0:01:55]} 18. Nexf4 {[%clk 0:01:59]}  exf4 {[%clk 0:01:52]} 19. Bxf4 {[%clk 0:02:00]}  Qc6 {[%clk 0:01:49]} 20. Qd2 {[%clk 0:01:29]}  Nd7 {[%clk 0:01:44]} 21. Rac1 {[%clk 0:01:03]}  Ne5 {[%clk 0:01:43]} 22. b3 {[%clk 0:00:58]}  Rac8 {[%clk 0:01:35]} 23. Ne7 {[%clk 0:00:51]}  Qc5+ {[%clk 0:01:31]} 24. Be3 {[%clk 0:00:37]}  Qxe7 {[%clk 0:01:31]} 25. Bxb6 {[%clk 0:00:37]}  Qh4 {[%clk 0:01:18]} 26. Qxa5 {[%clk 0:00:25]}  Bxg4 {[%clk 0:01:11]} 27. Bf2 {[%clk 0:00:19]}  Qh6 {[%clk 0:01:03]} 28. Rc3 {[%clk 0:00:15]}  Be2 {[%clk 0:00:57]} 29. Re1 {[%clk 0:00:13]}  Qd2 {[%clk 0:00:52]} 30. Bg3 {[%clk 0:00:09]}  Nf3+ {[%clk 0:00:48]} 31. Bxf3 {[%clk 0:00:08]}  Bxf3 {[%clk 0:00:41]} 32. e5 {[%clk 0:00:05]}  Qg2# {[%clk 0:00:38]} 0-1


[Site "https://www.chess.com"]

[Event "Titled Tuesday Blitz August 08 Early 2023"]
[White "EvgenyBurmakin"]
[Black "Rietze, Clemens, Dr."]
[BlackFideId "24620351"]
[WhiteElo "2235"]
[BlackElo "2381"]
[Result "0-1"]
[Round "10"]
[TimeControl "180+1"]
[Date "2023.08.08"]
[WhiteClock "0:00:00"]
[BlackClock "0:00:09"]
[Board "150"]

1. e4 {[%clk 0:03:00]}  c5 {[%clk 0:03:00]} 2. Nc3 {[%clk 0:03:00]}  Nc6 {[%clk 0:03:00]} 3. Bb5 {[%clk 0:02:59]}  Nd4 {[%clk 0:02:58]} 4. Bc4 {[%clk 0:03:00]}  e6 {[%clk 0:02:53]} 5. Nf3 {[%clk 0:02:55]}  Nf6 {[%clk 0:02:53]} 6. e5 {[%clk 0:02:42]}  d5 {[%clk 0:02:49]} 7. exd6 {[%clk 0:02:32]}  Bxd6 {[%clk 0:02:46]} 8. d3 {[%clk 0:02:25]}  h6 {[%clk 0:02:37]} 9. Be3 {[%clk 0:02:24]}  Nf5 {[%clk 0:02:31]} 10. Bd2 {[%clk 0:02:11]}  O-O {[%clk 0:02:30]} 11. O-O {[%clk 0:02:09]}  a6 {[%clk 0:02:27]} 12. a4 {[%clk 0:02:08]}  b6 {[%clk 0:02:28]} 13. Re1 {[%clk 0:02:05]}  Bb7 {[%clk 0:02:28]} 14. Ne4 {[%clk 0:01:49]}  Be7 {[%clk 0:02:22]} 15. Bc3 {[%clk 0:01:45]}  Nd5 {[%clk 0:02:14]} 16. Bd2 {[%clk 0:01:25]}  Qc7 {[%clk 0:02:13]} 17. Ng3 {[%clk 0:01:12]}  Nxg3 {[%clk 0:01:57]} 18. hxg3 {[%clk 0:01:13]}  Bf6 {[%clk 0:01:57]} 19. c3 {[%clk 0:01:12]}  Bc6 {[%clk 0:01:54]} 20. Qe2 {[%clk 0:01:06]}  b5 {[%clk 0:01:53]} 21. Bb3 {[%clk 0:01:01]}  Bb7 {[%clk 0:01:28]} 22. d4 {[%clk 0:00:50]}  cxd4 {[%clk 0:01:23]} 23. cxd4 {[%clk 0:00:51]}  bxa4 {[%clk 0:01:19]} 24. Bxa4 {[%clk 0:00:50]}  Qb6 {[%clk 0:01:19]} 25. Bc3 {[%clk 0:00:26]}  Rac8 {[%clk 0:01:09]} 26. Rac1 {[%clk 0:00:23]}  Rfd8 {[%clk 0:01:07]} 27. Ne5 {[%clk 0:00:21]}  Rc7 {[%clk 0:00:57]} 28. Qd2 {[%clk 0:00:16]}  Qd6 {[%clk 0:00:38]} 29. Ba5 {[%clk 0:00:12]}  Rxc1 {[%clk 0:00:37]} 30. Rxc1 {[%clk 0:00:13]}  Rc8 {[%clk 0:00:34]} 31. Rxc8+ {[%clk 0:00:12]}  Bxc8 {[%clk 0:00:35]} 32. Nc4 {[%clk 0:00:08]}  Qb8 {[%clk 0:00:29]} 33. Bc3 {[%clk 0:00:08]}  Bb7 {[%clk 0:00:26]} 34. Ne5 {[%clk 0:00:07]}  Qd6 {[%clk 0:00:23]} 35. Bb3 {[%clk 0:00:05]}  Qc7 {[%clk 0:00:18]} 36. Qd3 {[%clk 0:00:05]}  Nxc3 {[%clk 0:00:14]} 37. bxc3 {[%clk 0:00:04]}  Bxe5 {[%clk 0:00:13]} 38. dxe5 {[%clk 0:00:05]}  Qxe5 {[%clk 0:00:12]} 39. Qd8+ {[%clk 0:00:04]}  Kh7 {[%clk 0:00:13]} 40. Bc2+ {[%clk 0:00:04]}  Be4 {[%clk 0:00:12]} 41. Bxe4+ {[%clk 0:00:02]}  Qxe4 {[%clk 0:00:12]} 42. Qe7 {[%clk 0:00:02]}  Qf5 {[%clk 0:00:11]} 43. Qb4 {[%clk 0:00:02]}  g6 {[%clk 0:00:11]} 44. c4 {[%clk 0:00:02]}  a5 {[%clk 0:00:10]} 45. Qb5 {[%clk 0:00:00]}  Kg7 {[%clk 0:00:09]} 0-1


[Site "https://www.chess.com"]

[Event "Titled Tuesday Blitz August 08 Early 2023"]
[White "Nithyalakshmi, Sivanesan"]
[Black "Kuchava, Ana"]
[WhiteFideId "5706955"]
[BlackFideId "13605348"]
[WhiteElo "2339"]
[BlackElo "2169"]
[Result "1/2-1/2"]
[Round "10"]
[TimeControl "180+1"]
[Date "2023.08.08"]
[WhiteClock "0:02:11"]
[BlackClock "0:01:54"]
[Board "154"]

1. e4 {[%clk 0:02:56]}  c6 {[%clk 0:02:59]} 2. d4 {[%clk 0:02:55]}  d5 {[%clk 0:02:58]} 3. exd5 {[%clk 0:02:53]}  cxd5 {[%clk 0:02:58]} 4. Bd3 {[%clk 0:02:53]}  Nc6 {[%clk 0:02:55]} 5. c3 {[%clk 0:02:53]}  Nf6 {[%clk 0:02:53]} 6. Bf4 {[%clk 0:02:50]}  Bg4 {[%clk 0:02:51]} 7. Qb3 {[%clk 0:02:49]}  Qd7 {[%clk 0:02:48]} 8. h3 {[%clk 0:02:47]}  Bh5 {[%clk 0:02:46]} 9. Nd2 {[%clk 0:02:45]}  e6 {[%clk 0:02:32]} 10. Ngf3 {[%clk 0:02:44]}  Be7 {[%clk 0:02:30]} 11. Bb5 {[%clk 0:02:38]}  a6 {[%clk 0:02:26]} 12. Ne5 {[%clk 0:02:36]}  Qc8 {[%clk 0:02:25]} 13. Bxc6+ {[%clk 0:02:34]}  bxc6 {[%clk 0:02:26]} 14. Qa4 {[%clk 0:02:34]}  O-O {[%clk 0:02:16]} 15. Qxc6 {[%clk 0:02:33]}  Qd8 {[%clk 0:02:11]} 16. O-O {[%clk 0:02:24]}  Be2 {[%clk 0:02:08]} 17. Rfe1 {[%clk 0:02:23]}  Bb5 {[%clk 0:02:07]} 18. Qb7 {[%clk 0:02:17]}  Rb8 {[%clk 0:02:04]} 19. Qa7 {[%clk 0:02:12]}  Ra8 {[%clk 0:01:54]} 20. Qb7 {[%clk 0:02:11]}  Rb8 {[%clk 0:01:54]} 21. Qa7 {[%clk 0:02:11]}  Ra8 {[%clk 0:01:54]} 22. Qb7 {[%clk 0:02:11]} 1/2-1/2


[Site "https://www.chess.com"]

[Event "Titled Tuesday Blitz August 08 Early 2023"]
[White "amanjazu"]
[Black "cycygogne"]
[WhiteElo "2326"]
[BlackElo "2184"]
[Result "0-1"]
[Round "10"]
[TimeControl "180+1"]
[Date "2023.08.08"]
[WhiteClock "0:00:00"]
[BlackClock "0:00:30"]
[Board "156"]

1. e4 {[%clk 0:02:59]}  d5 {[%clk 0:02:59]} 2. exd5 {[%clk 0:02:59]}  Qxd5 {[%clk 0:03:00]} 3. Nc3 {[%clk 0:02:59]}  Qd6 {[%clk 0:03:00]} 4. d4 {[%clk 0:02:58]}  Nf6 {[%clk 0:03:01]} 5. Bc4 {[%clk 0:02:50]}  c6 {[%clk 0:02:55]} 6. Nge2 {[%clk 0:02:49]}  Bf5 {[%clk 0:02:50]} 7. O-O {[%clk 0:02:48]}  e6 {[%clk 0:02:50]} 8. Bf4 {[%clk 0:02:47]}  Qd8 {[%clk 0:02:47]} 9. Ng3 {[%clk 0:02:48]}  Bg6 {[%clk 0:02:46]} 10. Re1 {[%clk 0:02:33]}  Bd6 {[%clk 0:02:45]} 11. Bxd6 {[%clk 0:02:29]}  Qxd6 {[%clk 0:02:46]} 12. d5 {[%clk 0:01:48]}  cxd5 {[%clk 0:02:45]} 13. Nxd5 {[%clk 0:01:43]}  Nxd5 {[%clk 0:02:39]} 14. Bxd5 {[%clk 0:01:42]}  Nc6 {[%clk 0:02:27]} 15. Ne4 {[%clk 0:01:10]}  Bxe4 {[%clk 0:02:06]} 16. Bxe4 {[%clk 0:01:11]}  Qxd1 {[%clk 0:01:53]} 17. Raxd1 {[%clk 0:01:07]}  O-O {[%clk 0:01:53]} 18. Rd7 {[%clk 0:01:05]}  Rab8 {[%clk 0:01:42]} 19. b3 {[%clk 0:00:53]}  Rfd8 {[%clk 0:01:40]} 20. Bxc6 {[%clk 0:00:49]}  bxc6 {[%clk 0:01:37]} 21. Rxa7 {[%clk 0:00:50]}  Rd2 {[%clk 0:01:37]} 22. Rc1 {[%clk 0:00:45]}  Rbd8 {[%clk 0:01:33]} 23. g3 {[%clk 0:00:41]}  g6 {[%clk 0:01:26]} 24. Rc7 {[%clk 0:00:33]}  R8d6 {[%clk 0:01:21]} 25. Kf1 {[%clk 0:00:23]}  e5 {[%clk 0:01:12]} 26. a4 {[%clk 0:00:23]}  e4 {[%clk 0:01:12]} 27. Ke1 {[%clk 0:00:21]}  e3 {[%clk 0:01:10]} 28. fxe3 {[%clk 0:00:16]}  Rxh2 {[%clk 0:01:10]} 29. a5 {[%clk 0:00:10]}  Rh1+ {[%clk 0:01:08]} 30. Ke2 {[%clk 0:00:10]}  Rxc1 {[%clk 0:01:08]} 31. a6 {[%clk 0:00:11]}  Ra1 {[%clk 0:01:06]} 32. a7 {[%clk 0:00:10]}  Kg7 {[%clk 0:01:06]} 33. c4 {[%clk 0:00:08]}  h5 {[%clk 0:01:02]} 34. b4 {[%clk 0:00:08]}  Rd8 {[%clk 0:01:00]} 35. b5 {[%clk 0:00:08]}  cxb5 {[%clk 0:00:56]} 36. cxb5 {[%clk 0:00:09]}  Rd6 {[%clk 0:00:55]} 37. Rb7 {[%clk 0:00:08]}  g5 {[%clk 0:00:50]} 38. e4 {[%clk 0:00:08]}  h4 {[%clk 0:00:50]} 39. gxh4 {[%clk 0:00:08]}  gxh4 {[%clk 0:00:51]} 40. e5 {[%clk 0:00:08]}  Re6 {[%clk 0:00:49]} 41. b6 {[%clk 0:00:07]}  h3 {[%clk 0:00:49]} 42. Rb8 {[%clk 0:00:05]}  h2 {[%clk 0:00:46]} 43. b7 {[%clk 0:00:04]}  h1=Q {[%clk 0:00:32]} 44. Rg8+ {[%clk 0:00:04]}  Kxg8 {[%clk 0:00:30]} 45. b8=Q+ {[%clk 0:00:00]}  Kg7 {[%clk 0:00:30]} 0-1


[Site "https://www.chess.com"]

[Event "Titled Tuesday Blitz August 08 Early 2023"]
[White "Butti, Enrique"]
[Black "Tosic, Srecko"]
[WhiteFideId "3700470"]
[BlackFideId "924563"]
[WhiteElo "2169"]
[BlackElo "2307"]
[Result "1-0"]
[Round "10"]
[TimeControl "180+1"]
[Date "2023.08.08"]
[WhiteClock "0:01:47"]
[BlackClock "0:00:00"]
[Board "157"]

1. d4 {[%clk 0:02:59]}  e6 {[%clk 0:02:59]} 2. Nf3 {[%clk 0:02:58]}  Nf6 {[%clk 0:02:56]} 3. e3 {[%clk 0:02:57]}  b6 {[%clk 0:02:52]} 4. Bd3 {[%clk 0:02:55]}  Bb7 {[%clk 0:02:52]} 5. O-O {[%clk 0:02:54]}  Be7 {[%clk 0:02:51]} 6. b3 {[%clk 0:02:54]}  O-O {[%clk 0:02:46]} 7. Bb2 {[%clk 0:02:53]}  d5 {[%clk 0:02:47]} 8. c4 {[%clk 0:02:52]}  Nbd7 {[%clk 0:02:45]} 9. Nc3 {[%clk 0:02:51]}  a6 {[%clk 0:02:44]} 10. Qe2 {[%clk 0:02:49]}  Ne4 {[%clk 0:02:42]} 11. Rfd1 {[%clk 0:02:48]}  f5 {[%clk 0:02:41]} 12. Rac1 {[%clk 0:02:42]}  Bd6 {[%clk 0:02:38]} 13. Na4 {[%clk 0:02:38]}  Qe7 {[%clk 0:02:01]} 14. Ne5 {[%clk 0:02:36]}  Bxe5 {[%clk 0:01:45]} 15. dxe5 {[%clk 0:02:35]}  Ndc5 {[%clk 0:01:44]} 16. Ba3 {[%clk 0:02:26]}  Bc6 {[%clk 0:01:22]} 17. Nxc5 {[%clk 0:02:06]}  Nxc5 {[%clk 0:01:21]} 18. cxd5 {[%clk 0:02:06]}  exd5 {[%clk 0:01:14]} 19. f4 {[%clk 0:01:59]}  Rfd8 {[%clk 0:00:41]} 20. Qc2 {[%clk 0:01:50]}  d4 {[%clk 0:00:24]} 21. Bc4+ {[%clk 0:01:48]}  Kh8 {[%clk 0:00:00]} 22. exd4 {[%clk 0:01:47]} 1-0


[Site "https://www.chess.com"]

[Event "Titled Tuesday Blitz August 08 Early 2023"]
[White "Novikova, Margarita"]
[Black "Afanasieva, Alexandra"]
[WhiteFideId "14109689"]
[BlackFideId "34126926"]
[WhiteElo "2127"]
[BlackElo "2303"]
[Result "0-1"]
[Round "10"]
[TimeControl "180+1"]
[Date "2023.08.08"]
[WhiteClock "0:00:00"]
[BlackClock "0:00:21"]
[Board "159"]

1. e4 {[%clk 0:03:00]}  c5 {[%clk 0:03:00]} 2. Nc3 {[%clk 0:02:59]}  e6 {[%clk 0:02:58]} 3. d3 {[%clk 0:02:58]}  Nc6 {[%clk 0:02:59]} 4. Be3 {[%clk 0:02:58]}  d5 {[%clk 0:02:59]} 5. exd5 {[%clk 0:02:56]}  exd5 {[%clk 0:03:00]} 6. Bd2 {[%clk 0:02:52]}  Nf6 {[%clk 0:03:00]} 7. Nf3 {[%clk 0:02:50]}  Bg4 {[%clk 0:02:58]} 8. Be2 {[%clk 0:02:50]}  Bd6 {[%clk 0:02:58]} 9. h3 {[%clk 0:02:48]}  Bh5 {[%clk 0:02:58]} 10. Bg5 {[%clk 0:02:35]}  Be7 {[%clk 0:02:52]} 11. Qd2 {[%clk 0:02:30]}  h6 {[%clk 0:02:47]} 12. Bf4 {[%clk 0:02:28]}  O-O {[%clk 0:02:45]} 13. O-O {[%clk 0:02:28]}  Bd6 {[%clk 0:02:43]} 14. Rfe1 {[%clk 0:02:26]}  Bxf3 {[%clk 0:02:32]} 15. Bxf3 {[%clk 0:02:25]}  Nd4 {[%clk 0:02:33]} 16. Bd1 {[%clk 0:02:03]}  Qc7 {[%clk 0:02:19]} 17. Bxd6 {[%clk 0:01:58]}  Qxd6 {[%clk 0:02:20]} 18. Ne2 {[%clk 0:01:56]}  Nc6 {[%clk 0:01:59]} 19. Qf4 {[%clk 0:01:54]}  Qxf4 {[%clk 0:01:57]} 20. Nxf4 {[%clk 0:01:55]}  Rfe8 {[%clk 0:01:58]} 21. Bf3 {[%clk 0:01:43]}  Nd4 {[%clk 0:01:48]} 22. Rxe8+ {[%clk 0:01:42]}  Rxe8 {[%clk 0:01:46]} 23. Kf1 {[%clk 0:01:12]}  Nxf3 {[%clk 0:01:36]} 24. gxf3 {[%clk 0:01:10]}  g5 {[%clk 0:01:37]} 25. Ne2 {[%clk 0:01:09]}  Kg7 {[%clk 0:01:36]} 26. f4 {[%clk 0:01:09]}  Kg6 {[%clk 0:01:35]} 27. fxg5 {[%clk 0:01:08]}  hxg5 {[%clk 0:01:36]} 28. f4 {[%clk 0:01:07]}  gxf4 {[%clk 0:01:34]} 29. Nxf4+ {[%clk 0:01:07]}  Kf5 {[%clk 0:01:34]} 30. Ne2 {[%clk 0:01:03]}  Nh5 {[%clk 0:01:32]} 31. Kf2 {[%clk 0:01:02]}  Nf4 {[%clk 0:01:27]} 32. Nxf4 {[%clk 0:00:58]}  Kxf4 {[%clk 0:01:28]} 33. Rg1 {[%clk 0:00:57]}  f5 {[%clk 0:01:05]} 34. Rg7 {[%clk 0:00:54]}  Rh8 {[%clk 0:00:58]} 35. Rg3 {[%clk 0:00:53]}  b5 {[%clk 0:00:55]} 36. Rf3+ {[%clk 0:00:52]}  Ke5 {[%clk 0:00:54]} 37. Re3+ {[%clk 0:00:52]}  Kf4 {[%clk 0:00:53]} 38. Rf3+ {[%clk 0:00:52]}  Ke5 {[%clk 0:00:54]} 39. Re3+ {[%clk 0:00:52]}  Kf6 {[%clk 0:00:49]} 40. Kg3 {[%clk 0:00:47]}  Kg5 {[%clk 0:00:49]} 41. Re5 {[%clk 0:00:44]}  c4 {[%clk 0:00:46]} 42. Rxd5 {[%clk 0:00:43]}  cxd3 {[%clk 0:00:47]} 43. cxd3 {[%clk 0:00:43]}  a6 {[%clk 0:00:45]} 44. d4 {[%clk 0:00:39]}  Kf6 {[%clk 0:00:43]} 45. Rd6+ {[%clk 0:00:37]}  Kg5 {[%clk 0:00:41]} 46. Rxa6 {[%clk 0:00:38]}  f4+ {[%clk 0:00:40]} 47. Kg2 {[%clk 0:00:37]}  Kf5 {[%clk 0:00:39]} 48. Rb6 {[%clk 0:00:37]}  Ke4 {[%clk 0:00:38]} 49. Rxb5 {[%clk 0:00:36]}  f3+ {[%clk 0:00:38]} 50. Kf2 {[%clk 0:00:35]}  Rxh3 {[%clk 0:00:36]} 51. Rb4 {[%clk 0:00:24]}  Rh2+ {[%clk 0:00:34]} 52. Kf1 {[%clk 0:00:22]}  Rh1+ {[%clk 0:00:31]} 53. Kf2 {[%clk 0:00:22]}  Rh2+ {[%clk 0:00:32]} 54. Kf1 {[%clk 0:00:20]}  Rd2 {[%clk 0:00:32]} 55. Rb8 {[%clk 0:00:16]}  Rd1+ {[%clk 0:00:29]} 56. Kf2 {[%clk 0:00:15]}  Rd2+ {[%clk 0:00:30]} 57. Kg3 {[%clk 0:00:15]}  Rg2+ {[%clk 0:00:25]} 58. Kh3 {[%clk 0:00:15]}  Rg1 {[%clk 0:00:25]} 59. Kh2 {[%clk 0:00:10]}  f2 {[%clk 0:00:23]} 60. Re8+ {[%clk 0:00:08]}  Kxd4 {[%clk 0:00:22]} 61. Rd8+ {[%clk 0:00:08]}  Ke5 {[%clk 0:00:21]} 62. Re8+ {[%clk 0:00:08]}  Kd6 {[%clk 0:00:21]} 63. Rd8+ {[%clk 0:00:00]}  Ke7 {[%clk 0:00:21]} 0-1


[Site "https://www.chess.com"]

[Event "Titled Tuesday Blitz August 08 Early 2023"]
[White "Fernandez Hernandez, Gerardo"]
[Black "Pumpkin_in_moonlight"]
[WhiteFideId "2207400"]
[WhiteElo "2238"]
[BlackElo "2194"]
[Result "0-1"]
[Round "10"]
[TimeControl "180+1"]
[Date "2023.08.08"]
[WhiteClock "0:00:02"]
[BlackClock "0:00:38"]
[Board "165"]

1. e4 {[%clk 0:03:00]}  c5 {[%clk 0:02:59]} 2. Nc3 {[%clk 0:02:59]}  a6 {[%clk 0:02:58]} 3. g3 {[%clk 0:02:55]}  Nc6 {[%clk 0:02:57]} 4. Bg2 {[%clk 0:02:55]}  e6 {[%clk 0:02:57]} 5. d3 {[%clk 0:02:53]}  Nf6 {[%clk 0:02:49]} 6. Nh3 {[%clk 0:02:42]}  d5 {[%clk 0:02:48]} 7. O-O {[%clk 0:02:23]}  Be7 {[%clk 0:02:42]} 8. Bg5 {[%clk 0:02:13]}  d4 {[%clk 0:02:37]} 9. Ne2 {[%clk 0:02:05]}  e5 {[%clk 0:02:35]} 10. f4 {[%clk 0:01:59]}  h6 {[%clk 0:02:34]} 11. Bxf6 {[%clk 0:01:51]}  Bxf6 {[%clk 0:02:34]} 12. fxe5 {[%clk 0:01:48]}  Nxe5 {[%clk 0:02:28]} 13. Nhf4 {[%clk 0:01:45]}  O-O {[%clk 0:02:20]} 14. Nd5 {[%clk 0:01:39]}  Bg5 {[%clk 0:02:18]} 15. Nef4 {[%clk 0:01:35]}  Be6 {[%clk 0:02:08]} 16. h4 {[%clk 0:01:25]}  Bxf4 {[%clk 0:01:52]} 17. Nxf4 {[%clk 0:01:19]}  Bg4 {[%clk 0:01:47]} 18. Qd2 {[%clk 0:01:19]}  Qd7 {[%clk 0:01:43]} 19. Nd5 {[%clk 0:01:14]}  Rae8 {[%clk 0:01:40]} 20. Rf4 {[%clk 0:01:06]}  Ng6 {[%clk 0:01:25]} 21. Rf6 {[%clk 0:00:44]}  Qb5 {[%clk 0:01:11]} 22. Rb6 {[%clk 0:00:33]}  Qd7 {[%clk 0:01:11]} 23. Rf1 {[%clk 0:00:29]}  Kh8 {[%clk 0:01:03]} 24. b3 {[%clk 0:00:24]}  Ne5 {[%clk 0:00:59]} 25. Rf4 {[%clk 0:00:18]}  Be6 {[%clk 0:00:53]} 26. Qf2 {[%clk 0:00:16]}  Bxd5 {[%clk 0:00:47]} 27. exd5 {[%clk 0:00:17]}  Ng4 {[%clk 0:00:46]} 28. Qd2 {[%clk 0:00:16]}  Ne3 {[%clk 0:00:44]} 29. Qf2 {[%clk 0:00:12]}  Qc7 {[%clk 0:00:39]} 30. Rxb7 {[%clk 0:00:03]}  Qxb7 {[%clk 0:00:39]} 31. d6 {[%clk 0:00:03]}  Qxg2+ {[%clk 0:00:37]} 32. Qxg2 {[%clk 0:00:03]}  Nxg2 {[%clk 0:00:37]} 33. Kxg2 {[%clk 0:00:02]}  Rd8 {[%clk 0:00:38]} 0-1


[Site "https://www.chess.com"]

[Event "Titled Tuesday Blitz August 08 Early 2023"]
[White "cthake"]
[Black "Thiel, Thomas"]
[BlackFideId "4615964"]
[WhiteElo "1842"]
[BlackElo "2203"]
[Result "0-1"]
[Round "10"]
[TimeControl "180+1"]
[Date "2023.08.08"]
[WhiteClock "0:00:00"]
[BlackClock "0:00:42"]
[Board "167"]

1. e4 {[%clk 0:03:00]}  d5 {[%clk 0:02:59]} 2. exd5 {[%clk 0:02:59]}  Nf6 {[%clk 0:02:57]} 3. Nc3 {[%clk 0:02:55]}  Nxd5 {[%clk 0:02:55]} 4. Nxd5 {[%clk 0:02:51]}  Qxd5 {[%clk 0:02:53]} 5. Qf3 {[%clk 0:02:50]}  Be6 {[%clk 0:02:52]} 6. Qxd5 {[%clk 0:02:37]}  Bxd5 {[%clk 0:02:53]} 7. f3 {[%clk 0:02:37]}  Nc6 {[%clk 0:02:52]} 8. Ne2 {[%clk 0:02:36]}  O-O-O {[%clk 0:02:49]} 9. c3 {[%clk 0:02:31]}  e5 {[%clk 0:02:47]} 10. Ng3 {[%clk 0:02:27]}  g6 {[%clk 0:02:40]} 11. Ne4 {[%clk 0:02:16]}  f5 {[%clk 0:02:37]} 12. Nf2 {[%clk 0:02:06]}  Bg7 {[%clk 0:02:12]} 13. d3 {[%clk 0:02:04]}  Rhe8 {[%clk 0:02:11]} 14. Bg5 {[%clk 0:02:03]}  Rd7 {[%clk 0:02:09]} 15. O-O-O {[%clk 0:02:02]}  h6 {[%clk 0:02:06]} 16. Be3 {[%clk 0:01:55]}  Bxa2 {[%clk 0:02:05]} 17. b4 {[%clk 0:01:43]}  a6 {[%clk 0:01:49]} 18. Kb2 {[%clk 0:01:43]}  Bf7 {[%clk 0:01:47]} 19. Be2 {[%clk 0:01:37]}  Ne7 {[%clk 0:01:45]} 20. h4 {[%clk 0:01:31]}  Nd5 {[%clk 0:01:44]} 21. Bd2 {[%clk 0:01:26]}  e4 {[%clk 0:01:41]} 22. dxe4 {[%clk 0:01:18]}  Nxb4 {[%clk 0:01:40]} 23. Ka3 {[%clk 0:01:16]}  Nc6 {[%clk 0:01:35]} 24. exf5 {[%clk 0:01:15]}  Rxe2 {[%clk 0:01:32]} 25. fxg6 {[%clk 0:01:13]}  Bxg6 {[%clk 0:01:23]} 26. Rhe1 {[%clk 0:01:00]}  Rdxd2 {[%clk 0:01:17]} 27. Rxd2 {[%clk 0:00:29]}  Rxd2 {[%clk 0:01:13]} 28. Ne4 {[%clk 0:00:28]}  Bxe4 {[%clk 0:01:12]} 29. Rxe4 {[%clk 0:00:08]}  Rxg2 {[%clk 0:01:11]} 30. h5 {[%clk 0:00:07]}  Bxc3 {[%clk 0:01:10]} 31. Kb3 {[%clk 0:00:06]}  Be5 {[%clk 0:01:07]} 32. f4 {[%clk 0:00:05]}  Bd6 {[%clk 0:01:06]} 33. f5 {[%clk 0:00:05]}  Rf2 {[%clk 0:01:03]} 34. Re6 {[%clk 0:00:04]}  Rxf5 {[%clk 0:01:01]} 35. Rxh6 {[%clk 0:00:04]}  Rf3+ {[%clk 0:00:54]} 36. Kc4 {[%clk 0:00:03]}  b5+ {[%clk 0:00:52]} 37. Kd5 {[%clk 0:00:03]}  Ne7+ {[%clk 0:00:46]} 38. Ke6 {[%clk 0:00:02]}  Kb7 {[%clk 0:00:45]} 39. Rh8 {[%clk 0:00:02]}  Nf5 {[%clk 0:00:42]} 40. h6 {[%clk 0:00:00]}  Nxh6 {[%clk 0:00:42]} 0-1


[Site "https://www.chess.com"]

[Event "Titled Tuesday Blitz August 08 Early 2023"]
[White "Ai, Evan"]
[Black "Wisniowski, Natalie"]
[WhiteFideId "2094770"]
[BlackFideId "30929261"]
[WhiteElo "2312"]
[BlackElo "2044"]
[Result "1-0"]
[Round "10"]
[TimeControl "180+1"]
[Date "2023.08.08"]
[WhiteClock "0:00:39"]
[BlackClock "0:00:00"]
[Board "168"]

1. e4 {[%clk 0:02:58]}  e6 {[%clk 0:02:59]} 2. d4 {[%clk 0:02:57]}  d5 {[%clk 0:02:59]} 3. Nc3 {[%clk 0:02:58]}  Bb4 {[%clk 0:02:56]} 4. e5 {[%clk 0:02:58]}  Ne7 {[%clk 0:02:51]} 5. Qg4 {[%clk 0:02:52]}  Ng6 {[%clk 0:02:49]} 6. h4 {[%clk 0:02:50]}  h5 {[%clk 0:02:47]} 7. Qg3 {[%clk 0:02:50]}  c5 {[%clk 0:02:46]} 8. a3 {[%clk 0:02:21]}  cxd4 {[%clk 0:02:37]} 9. axb4 {[%clk 0:02:16]}  dxc3 {[%clk 0:02:36]} 10. bxc3 {[%clk 0:02:17]}  Qc7 {[%clk 0:02:35]} 11. f4 {[%clk 0:02:03]}  Nc6 {[%clk 0:02:26]} 12. Bd3 {[%clk 0:02:00]}  Nce7 {[%clk 0:02:25]} 13. Ne2 {[%clk 0:01:44]}  Bd7 {[%clk 0:02:00]} 14. Be3 {[%clk 0:01:38]}  b6 {[%clk 0:00:55]} 15. O-O {[%clk 0:01:25]}  Bc6 {[%clk 0:00:52]} 16. Nd4 {[%clk 0:01:20]}  O-O {[%clk 0:00:20]} 17. Be2 {[%clk 0:01:00]}  a5 {[%clk 0:00:11]} 18. Bxh5 {[%clk 0:00:50]}  axb4 {[%clk 0:00:10]} 19. Rxa8 {[%clk 0:00:51]}  Rxa8 {[%clk 0:00:10]} 20. cxb4 {[%clk 0:00:51]}  Bb7 {[%clk 0:00:06]} 21. Bxg6 {[%clk 0:00:44]}  Nxg6 {[%clk 0:00:05]} 22. Nxe6 {[%clk 0:00:41]}  fxe6 {[%clk 0:00:04]} 23. Qxg6 {[%clk 0:00:41]}  Qf7 {[%clk 0:00:02]} 24. Qxf7+ {[%clk 0:00:39]}  Kxf7 {[%clk 0:00:03]} 25. Bxb6 {[%clk 0:00:39]}  Ra4 {[%clk 0:00:02]} 26. Bc5 {[%clk 0:00:39]}  Ra2 {[%clk 0:00:02]} 27. c3 {[%clk 0:00:39]}  Rc2 {[%clk 0:00:02]} 28. Bd4 {[%clk 0:00:39]}  Rd2 {[%clk 0:00:02]} 29. Rf2 {[%clk 0:00:39]}  Rd1+ {[%clk 0:00:02]} 30. Kh2 {[%clk 0:00:39]}  Rb1 {[%clk 0:00:02]} 31. Ra2 {[%clk 0:00:39]}  Rc1 {[%clk 0:00:00]} 32. Ra7 {[%clk 0:00:39]} 1-0


[Site "https://www.chess.com"]